bitfinex-derivatives/quotes_ETHF0:USTF0_20250620
["timestamp","ask_amount","ask_price","bid_price","bid_amount"]
[1750431226487,0.79981,2500.4,2500.2,0.79985]
[1750431226788,0.79991,2500.1,2499.8,0.6872]
[1750431226984,3.2078,2500.3,2499.8,0.6872]
[1750431226985,0.79996,2499.9,2499.8,0.6872]
[1750431227190,0.80004,2499.7,2499.5,9.185]
[1750431227492,0.80007,2499.6,2499.4,0.8001]
[1750431227692,0.80007,2499.6,2499.3,0.6872]
[1750431227890,10.84773534,2499.8,2499.3,0.6872]
[1750431227891,3.2078,2499.7,2499.3,0.6872]
[1750431228199,0.80011,2499.5,2499.3,1.48735]
[1750431228390,3.2078,2499.7,2499.3,1.48735]
[1750431228391,2.06038,2499.6,2499.5,0.8001]
[1750431228695,3.2078,2499.7,2499.4,0.80012]
[1750431228893,3.2078,2499.7,2499.3,0.6872]
[1750431229090,3.2078,2499.7,2499.0,1.356]
[1750431229091,0.80011,2499.5,2499.0,1.356]
[1750431229288,3.2078,2499.7,2499.0,2.0082]
[1750431229596,30.1368,2499.7,2499.6,0.80006]
[1750431229792,40.98453534,2499.7,2499.0,2.0082]
[1750431230093,0.80009,2499.6,2499.0,9.8362]
[1750431230392,40.98453534,2499.7,2499.3,0.80013]
[1750431230783,0.80014,2499.4,2499.3,0.80016]
[1750431230992,0.80012,2499.5,2499.3,0.80016]
[1750431231294,0.80014,2499.4,2499.2,0.80017]
[1750431231490,0.80012,2499.5,2499.3,0.80016]
[1750431231792,1.2603,2499.6,2499.0,2.0082]
[1750431232086,2.06037,2499.6,2499.4,0.80011]
[1750431232292,0.80012,2499.5,2499.3,0.80014]
[1750431232494,1.2603,2499.6,2499.0,4.0088]
[1750431232691,0.8001,2499.5,2499.0,4.0088]
[1750431232997,0.80007,2499.6,2499.5,0.80009]
[1750431233192,0.8001,2499.5,2499.4,0.8001]
[1750431233491,30.1158,2499.7,2499.1,2.00057]
[1750431233697,0.80007,2499.6,2499.5,0.80009]
[1750431233898,3.2078,2499.7,2499.6,0.80006]
[1750431234392,0.80002,2499.8,2499.3,1.386]
[1750431234590,0.79998,2499.9,2499.4,2.00033]
[1750431234790,0.8,2499.8,2499.5,1.3029]
[1750431234991,0.79999,2499.9,2499.5,1.3029]
[1750431235194,41.76148534,2500.0,2499.9,0.79997]
[1750431235397,40.96153534,2500.0,2499.5,1.3029]
[1750431235789,30.91376,2500.0,2499.9,0.79997]
[1750431235984,30.1138,2500.0,2499.6,0.6896]
[1750431236191,0.80001,2499.8,2499.6,0.6896]
[1750431236389,1.279,2499.9,2499.6,1.48964]
[1750431236591,1.279,2499.9,2499.6,0.6896]
[1750431236592,2.07899,2499.9,2499.6,0.6896]
[1750431236792,30.1138,2500.0,2499.6,0.6896]
[1750431237092,0.80003,2499.7,2499.6,0.6896]
[1750431237286,0.80006,2499.6,2499.5,0.80007]
[1750431237493,0.80006,2499.6,2498.4,0.80044]
[1750431237494,34.733,2499.6,2498.4,0.80044]
[1750431237790,3.2078,2498.5,2498.0,3.2078]
[1750431238185,30.1118,2498.5,2498.0,3.2078]
[1750431238399,30.1118,2498.5,2498.1,2.00136]
[1750431238592,30.1118,2498.5,2498.4,0.80045]
[1750431238790,30.91221,2498.5,2498.4,0.80045]
[1750431238990,3.2078,2498.5,2498.4,0.80045]
[1750431240198,0.80046,2498.4,2498.3,0.80048]
[1750431240497,3.2078,2498.5,2498.0,0.713]
[1750431240695,9.53818417,2498.3,2498.0,0.713]
[1750431240891,0.80052,2498.2,2498.1,0.80052]
[1750431241095,3.33656,2498.4,2497.7,1.2577]
[1750431241298,3.33656,2498.4,2497.6,3.8997]
[1750431241299,10.86111483,2498.0,2497.6,3.8997]
[1750431241491,3.2078,2498.1,2497.4,0.80076]
[1750431241492,14.06891483,2497.7,2497.4,0.80076]
[1750431241689,0.80078,2497.4,2496.9,8.5199]
[1750431241890,3.2078,2497.7,2496.9,8.5199]
[1750431242093,4.00849,2497.7,2497.1,0.80086]
[1750431242293,3.2078,2497.7,2497.2,1.2577]
[1750431242494,0.80077,2497.5,2497.3,0.80079]
[1750431242696,40.97391483,2497.4,2496.9,0.6919]
[1750431242895,3.2078,2497.1,2496.5,3.2078]
[1750431243091,3.2078,2497.1,2495.8,4.00633]
[1750431243092,10.86111483,2496.6,2495.8,3.2078]
[1750431243292,10.86111483,2496.6,2495.7,0.6919]
[1750431243293,3.2078,2496.1,2495.7,0.6919]
[1750431243491,37.76611483,2496.0,2495.7,0.8013]
[1750431243692,37.76611483,2496.0,2495.3,3.2078]
[1750431243693,0.80126,2495.9,2495.3,3.2078]
[1750431243997,0.8015,2495.1,2495.0,3.2078]
[1750431244296,10.86111483,2495.1,2494.6,4.5849]
[1750431244488,0.80161,2494.8,2494.6,3.2078]
[1750431244687,26.91,2494.9,2494.8,0.8016]
[1750431244901,26.91,2494.9,2494.6,3.2078]
[1750431245086,26.91,2494.9,2494.4,1.3771]
[1750431245087,26.91,2494.9,2494.8,0.8016]
[1750431245395,26.91,2494.9,2494.0,3.2078]
[1750431245396,40.97891483,2494.9,2494.0,3.2078]
[1750431245597,3.2078,2494.6,2494.4,0.80171]
[1750431245792,3.2078,2494.6,2494.5,0.8017]
[1750431245999,31.5353,2495.1,2494.5,3.2078]
[1750431246295,3.2078,2495.1,2494.9,0.80154]
[1750431246496,2.26972,2496.0,2494.9,0.80154]
[1750431246497,3.2078,2495.7,2495.0,7.833]
[1750431246698,1.3507,2495.9,2495.4,3.2078]
[1750431246897,3.2078,2496.4,2495.9,0.80125]
[1750431247099,3.85266409,2498.1,2495.9,0.80125]
[1750431247100,1.3507,2496.6,2495.9,3.2078]
[1750431247392,16.80192,2497.5,2496.5,5.2104]
[1750431247393,3.2078,2497.0,2496.5,5.2104]
[1750431247595,0.40639746,2498.1,2496.6,7.833]
[1750431247596,3.2078,2497.3,2496.6,7.833]
[1750431247795,3.2078,2497.3,2496.9,3.2078]
[1750431247993,3.2078,2497.3,2497.2,0.80083]
[1750431248189,14.86973483,2497.3,2496.7,0.6524]
[1750431248398,14.86973483,2497.3,2496.3,3.2078]
[1750431248399,14.06891483,2497.0,2496.3,3.2078]
[1750431248602,10.86111483,2496.7,2496.2,3.2078]
[1750431248898,1.3507,2496.6,2496.5,0.80105]
[1750431249201,41.23491483,2496.7,2496.6,0.80102]
[1750431249202,3.2078,2496.7,2496.6,0.80102]
[1750431249497,28.5197,2497.1,2497.0,0.80089]
[1750431249701,4.5585,2497.1,2497.0,0.80089]
[1750431249993,27.168,2497.3,2496.6,2.00255]
[1750431249994,27.168,2497.3,2497.2,0.80083]
[1750431250705,1.277,2497.6,2497.5,0.80073]
[1750431251199,6.277,2497.6,2496.8,3.2078]
[1750431251393,14.06891483,2497.4,2496.8,3.2078]
[1750431251593,10.86111483,2497.1,2496.8,3.2078]
[1750431251791,36.254,2497.3,2496.9,0.80092]
[1750431251792,28.421,2497.0,2496.9,0.80092]
[1750431252401,1.277,2497.0,2496.9,0.80092]
[1750431252805,27.144,2497.1,2497.0,0.80089]
[1750431252999,27.144,2497.1,2496.7,3.2078]
[1750431253208,27.144,2497.1,2497.0,0.80089]
[1750431253700,3.2078,2498.2,2497.3,4.004]
[1750431253900,3.28785764,2498.2,2497.4,2.0546]
[1750431254109,10.86111483,2497.6,2496.7,0.06969793]
[1750431254401,3.2078,2497.3,2497.2,0.80083]
[1750431254598,14.06891483,2497.3,2497.0,0.80087]
[1750431254804,1.2726,2497.2,2496.9,0.8009]
[1750431255003,0.80088,2497.1,2496.8,0.80094]
[1750431255197,31.6364,2497.0,2496.8,0.80094]
[1750431255396,42.49751483,2497.0,2496.3,2.00278]
[1750431255597,42.49751483,2497.0,2496.9,0.80092]
[1750431255796,15.34151483,2497.0,2496.2,0.7026]
[1750431255994,3.2078,2496.7,2496.6,0.80102]
[1750431256199,3.2078,2496.7,2496.5,0.80103]
[1750431256397,3.2078,2496.7,2496.6,0.80102]
[1750431256598,4.0088,2496.7,2496.4,0.80105]
[1750431256799,1.2883,2496.6,2496.4,0.80107]
[1750431256999,3.2078,2496.7,2496.5,0.80105]
[1750431257203,3.2078,2496.7,2496.2,0.7026]
[1750431257204,3.2078,2496.7,2496.6,0.80102]
[1750431257400,3.2078,2496.7,2496.2,2.0486]
[1750431257613,3.2078,2496.7,2496.6,0.80102]
[1750431258198,3.2078,2496.7,2496.5,7.926]
[1750431258199,0.80103,2496.6,2496.2,8.6286]
[1750431258405,3.2078,2496.7,2496.4,0.80107]
[1750431258808,3.2078,2496.7,2496.3,0.80111]
[1750431259003,1.3504,2496.6,2496.2,1.50373]
[1750431259202,30.3108,2496.7,2496.2,0.7026]
[1750431259407,3.2078,2496.7,2496.6,0.80102]
[1750431259610,3.2078,2497.0,2496.9,0.80092]
[1750431259802,3.2078,2497.5,2497.4,0.80076]
[1750431260407,4.00855,2497.5,2497.3,0.80078]
[1750431260606,2.00222,2497.1,2496.5,0.80105]
[1750431260802,0.80104,2496.6,2496.3,0.80112]
[1750431261002,0.8011,2496.4,2496.2,1.47702]
[1750431261209,0.80106,2496.5,2496.4,0.80108]
[1750431261514,38.3907,2497.0,2496.2,0.6759]
[1750431261515,39.5962,2497.0,2496.2,0.6759]
[1750431261716,0.80103,2496.6,2496.5,0.80104]
[1750431262006,0.80105,2496.5,2496.2,0.6759]
[1750431262209,2.00256,2496.6,2496.2,0.6759]
[1750431262408,3.2078,2496.7,2496.6,0.80102]
[1750431262603,5.20998,2497.1,2496.3,3.2078]
[1750431262810,0.80098,2496.8,2496.3,2.0028]
[1750431263114,1.3356,2497.0,2496.4,2.0042]
[1750431263316,0.80101,2496.7,2496.4,0.7048]
[1750431263515,0.80101,2496.7,2496.6,0.80102]
[1750431263719,0.80101,2496.7,2496.4,0.7048]
[1750431263910,2.00238,2496.9,2496.4,0.7048]
[1750431264215,14.06891483,2496.5,2496.1,0.80116]
[1750431264413,1.3356,2496.4,2495.9,5.2109]
[1750431264718,0.80128,2495.8,2495.7,1.50611]
[1750431264918,29.09699,2496.1,2495.7,0.7048]
[1750431265110,0.80134,2495.6,2495.5,3.2078]
[1750431265311,3.2078,2495.9,2495.5,4.00916]
[1750431265519,3.2078,2495.9,2495.5,3.2078]
[1750431265732,4.00905,2495.9,2495.8,0.80128]
[1750431266017,3.2078,2495.9,2495.5,4.00916]
[1750431266221,4.00907,2495.9,2495.8,0.80128]
[1750431266413,3.2078,2495.9,2495.8,0.80128]
[1750431266612,3.2078,2495.9,2495.2,1.3008]
[1750431266613,0.80143,2495.4,2495.2,3.2078]
[1750431266816,3.2078,2495.6,2495.2,3.2078]
[1750431267012,3.2078,2495.6,2495.4,0.80139]
[1750431267219,3.2078,2495.6,2495.2,3.2078]
[1750431267418,0.80143,2495.4,2495.2,3.2078]
[1750431267621,2.00349,2495.5,2494.8,1.9547]
[1750431267812,0.8016,2494.8,2494.7,0.14547]
[1750431268121,47.90316483,2494.8,2494.2,0.80178]
[1750431268309,3.2078,2494.6,2494.0,3.1948]
[1750431268508,10.86111483,2494.5,2494.0,3.1948]
[1750431268721,4.00948,2494.6,2494.0,3.1948]
[1750431269017,3.2078,2495.0,2494.9,0.80157]
[1750431269213,3.2078,2495.3,2494.9,0.80157]
[1750431269410,4.00925,2495.3,2495.1,0.80149]
[1750431269715,4.00925,2495.3,2494.6,5.21191]
[1750431269716,3.2078,2495.3,2495.2,0.80147]
[1750431269916,4.5381,2495.6,2494.9,5.21172]
[1750431270137,31.6481,2495.6,2495.5,0.80137]
[1750431270319,0.80138,2495.5,2495.3,0.80143]
[1750431270512,30.3178,2495.6,2495.5,0.80137]
[1750431270717,27.115,2495.8,2495.3,2.00356]
[1750431270921,27.115,2495.8,2495.0,9.2436]
[1750431270922,0.80137,2495.6,2495.2,1.2545]
[1750431271120,28.4078,2495.8,2495.0,2.00384]
[1750431271418,3.2078,2495.9,2495.2,3.2078]
[1750431271722,30.3158,2495.9,2495.3,0.6695]
[1750431271921,10.86111483,2495.7,2494.9,3.2078]
[1750431272220,10.86111483,2495.4,2495.1,0.80149]
[1750431272426,11.66254483,2495.4,2494.9,3.2078]
[1750431272629,3.2078,2495.9,2495.8,0.80128]
[1750431272928,0.80114,2496.3,2495.7,3.2078]
[1750431272929,3.2078,2496.3,2495.7,3.2078]
[1750431273122,3.2078,2496.3,2495.7,9.93223]
[1750431273318,3.2078,2495.8,2495.7,0.80131]
[1750431273527,3.2078,2495.8,2495.5,0.80134]
[1750431273829,4.00908,2495.8,2495.2,3.8773]
[1750431274123,3.2078,2495.8,2495.6,0.80132]
[1750431274421,4.00907,2495.8,2495.3,1.2617]
[1750431274620,4.00909,2495.8,2495.6,0.80132]
[1750431274821,3.2078,2495.8,2495.5,0.80137]
[1750431275020,3.2078,2495.8,2495.2,3.8773]
[1750431275218,0.8014,2495.4,2495.2,4.67875]
[1750431275423,0.80139,2495.5,2495.3,0.80143]
[1750431275626,1.288,2495.7,2495.2,3.8773]
[1750431276126,1.288,2495.7,2495.3,0.80142]
[1750431276127,0.80139,2495.5,2495.3,0.80142]
[1750431276322,0.8014,2495.4,2495.3,0.80142]
[1750431276523,3.2078,2495.8,2495.2,3.8773]
[1750431276724,3.2078,2495.8,2495.7,0.80131]
[1750431277323,0.80119,2496.1,2495.9,0.80121]
[1750431277525,0.80119,2496.1,2495.9,0.80122]
[1750431277732,3.2078,2496.3,2496.0,0.80118]
[1750431278021,0.80109,2496.4,2495.8,5.21096]
[1750431278228,3.2078,2496.6,2496.4,0.80107]
[1750431278428,3.2078,2496.6,2496.4,0.80108]
[1750431278729,3.2078,2496.6,2495.9,2.0041]
[1750431278921,0.80121,2496.0,2495.9,0.6956]
[1750431279124,14.06891483,2496.0,2495.3,9.2385]
[1750431279325,1.2766,2495.9,2495.3,0.6956]
[1750431279523,1.2766,2495.9,2495.4,0.80137]
[1750431279727,0.80135,2495.6,2495.3,2.0041]
[1750431279928,0.80135,2495.6,2495.5,0.80137]
[1750431280229,1.2766,2495.9,2495.3,2.0041]
[1750431280431,0.80125,2495.9,2495.8,0.80126]
[1750431280737,4.00901,2496.0,2495.9,0.80124]
[1750431281026,0.80124,2495.9,2495.8,0.80126]
[1750431281324,11.41598032,2495.9,2494.7,3.2078]
[1750431281524,0.80163,2494.7,2494.6,0.6784]
[1750431281726,5.21166,2495.0,2494.1,11.1378]
[1750431281727,12.86505483,2494.9,2494.1,11.1378]
[1750431281930,0.80171,2494.5,2494.3,0.80174]
[1750431282130,3.2078,2494.7,2494.2,0.80177]
[1750431282426,3.2078,2494.7,2494.0,2.73723]
[1750431282427,0.80177,2494.3,2494.0,2.73723]
[1750431282627,13.37847802,2494.6,2494.1,0.80181]
[1750431282628,12.18631483,2494.6,2494.1,0.80181]
[1750431282829,0.80177,2494.3,2494.0,1.48023]
[1750431283032,0.80178,2494.3,2494.0,1.48023]
[1750431283428,3.2078,2494.4,2494.0,0.6784]
[1750431283628,3.2078,2494.4,2494.2,0.80178]
[1750431283829,3.2078,2494.4,2494.0,0.6784]
[1750431284036,39.95451483,2494.3,2493.6,1.3168]
[1750431284230,39.95451483,2494.3,2493.2,3.2078]
[1750431284231,3.2078,2493.8,2493.2,3.2078]
[1750431284434,3.2078,2493.8,2493.2,3.8842]
[1750431284637,3.2078,2493.8,2492.8,2.00559]
[1750431284638,12.05134762,2493.7,2492.8,3.2078]
[1750431284929,3.2078,2493.5,2492.9,2.79538]
[1750431285134,1.99228279,2493.4,2492.9,1.9932]
[1750431285440,3.2078,2493.8,2493.5,0.80199]
[1750431285739,1.18877684,2493.7,2493.1,11.1398]
[1750431286034,3.2078,2493.8,2492.9,0.6764]
[1750431286231,1.18879099,2493.7,2493.6,0.80198]
[1750431286531,1.18879099,2493.7,2493.4,3.2078]
[1750431286532,3.2078,2494.2,2494.1,0.80182]
[1750431286731,4.39623701,2494.2,2493.5,5.2128]
[1750431286924,4.39623701,2494.2,2493.6,0.6594]
[1750431286925,3.2078,2494.2,2493.6,0.6594]
[1750431287130,10.86111483,2494.1,2493.6,0.6594]
[1750431287337,12.23451483,2494.1,2493.9,0.80188]
[1750431287532,12.23451483,2494.1,2494.0,0.80185]
[1750431288136,3.2078,2494.2,2494.1,0.80182]
[1750431288335,4.39612972,2494.2,2494.1,0.80182]
[1750431288528,3.2078,2494.2,2494.1,0.80182]
[1750431288729,3.2078,2494.5,2493.9,2.00472]
[1750431289036,1.18849225,2494.4,2494.2,0.80177]
[1750431289237,0.80174,2494.4,2494.2,0.80177]
[1750431289430,0.80174,2494.4,2493.8,11.1518]
[1750431289431,12.22091483,2494.4,2493.8,3.2078]
[1750431289738,12.22091483,2494.4,2493.9,0.80186]
[1750431290038,0.80187,2494.0,2493.6,0.6594]
[1750431290230,0.80184,2494.0,2493.9,0.80188]
[1750431290435,10.86111483,2494.1,2493.8,0.80188]
[1750431290636,10.86111483,2494.1,2493.6,0.6594]
[1750431290637,0.80194,2493.8,2493.7,0.80195]
[1750431290837,0.80194,2493.8,2493.6,1.46136]
[1750431291037,27.092,2494.0,2493.6,0.6594]
[1750431291238,0.80195,2493.7,2493.6,0.6594]
[1750431291439,0.802,2493.6,2493.5,0.80202]
[1750431291733,5.3695,2493.9,2493.7,0.80194]
[1750431291931,5.3695,2493.9,2493.3,2.00521]
[1750431291932,0.80192,2493.8,2493.6,0.80196]
[1750431292132,3.2078,2493.9,2493.8,0.80192]
[1750431292340,3.2078,2494.2,2493.5,11.1528]
[1750431292532,3.2078,2494.5,2494.4,0.80173]
[1750431292839,4.39764144,2494.5,2494.4,0.80173]
[1750431293039,4.39764144,2494.5,2493.9,9.2828]
[1750431293237,4.00952,2494.5,2494.3,0.80175]
[1750431293436,3.2078,2494.5,2493.9,1.3378]
[1750431293628,0.80174,2494.4,2494.3,0.80176]
[1750431293833,0.80174,2494.4,2494.2,0.80177]
[1750431294039,0.80184,2494.1,2493.8,3.2078]
[1750431294239,14.21496483,2494.4,2493.7,7.945]
[1750431294542,0.80185,2494.0,2493.9,0.80187]
[1750431294744,3.2078,2494.5,2494.4,0.80172]
[1750431295035,3.2078,2494.5,2494.0,1.3378]
[1750431295237,14.06891483,2494.5,2494.4,0.80172]
[1750431295441,14.06891483,2494.5,2494.3,0.80173]
[1750431295641,14.87062483,2494.5,2494.4,0.80172]
[1750431295841,0.80175,2494.4,2494.3,0.80176]
[1750431296038,0.80175,2494.4,2493.7,11.1528]
[1750431296039,1.19223276,2494.4,2493.5,2.00501]
[1750431296240,3.2078,2494.5,2494.0,3.2078]
[1750431296441,3.2078,2494.5,2494.3,0.80173]
[1750431296641,3.2078,2494.5,2494.4,0.80172]
[1750431296847,4.00951,2494.5,2494.4,0.80172]
[1750431297139,3.2078,2494.5,2494.3,0.80176]
[1750431297334,0.80174,2494.4,2494.3,0.80176]
[1750431297645,0.80174,2494.4,2493.8,2.00479]
[1750431297646,0.80183,2494.1,2494.0,0.80184]
[1750431297941,0.80185,2494.0,2493.9,0.80186]
[1750431298136,0.80189,2493.9,2493.8,0.8019]
[1750431298347,3.2078,2494.2,2493.8,0.80189]
[1750431298538,3.2078,2494.2,2494.0,0.80183]
[1750431298733,0.80178,2494.3,2494.1,0.8018]
[1750431298935,44.50976483,2494.5,2493.7,3.34076]
[1750431299245,2.00434,2494.4,2493.9,0.80187]
[1750431299541,27.92776,2494.3,2494.2,0.80179]
[1750431299742,27.126,2494.3,2494.2,0.80179]
[1750431300046,0.80181,2494.2,2494.1,0.8018]
[1750431300238,14.06891483,2494.2,2493.6,0.643]
[1750431300438,0.80186,2494.0,2493.9,0.80186]
[1750431300644,0.802,2493.6,2493.5,0.802]
[1750431300936,3.2078,2493.8,2493.7,0.80195]
[1750431301141,3.2078,2493.8,2493.4,0.80204]
[1750431301142,30.3798,2493.8,2493.4,0.80204]
[1750431301443,31.664,2493.8,2493.2,4.5437]
[1750431301642,2.00488,2493.7,2493.4,0.80204]
[1750431301843,2.00488,2493.7,2492.9,0.6573]
[1750431301844,10.86111483,2493.6,2492.9,0.6573]
[1750431302145,3.2078,2493.8,2493.7,0.80195]
[1750431302638,3.2078,2493.8,2493.5,2.00503]
[1750431302639,3.2078,2493.8,2493.3,7.945]
[1750431302939,3.2078,2493.8,2493.7,0.80195]
[1750431303344,4.00974,2493.8,2493.6,0.80196]
[1750431303533,3.2078,2493.8,2493.7,0.80195]
[1750431303840,3.2078,2493.8,2492.9,3.2078]
[1750431304041,3.2078,2493.5,2492.9,3.8916]
[1750431304232,1.3634,2493.4,2492.9,3.8916]
[1750431304436,2.16546,2493.4,2493.3,0.80208]
[1750431304740,28.5664,2493.4,2492.7,3.2078]
[1750431304942,28.5664,2493.4,2492.7,0.6619]
[1750431304943,0.8022,2493.0,2492.7,0.6619]
[1750431305143,28.5664,2493.4,2492.7,2.0445]
[1750431305347,0.80215,2493.1,2492.7,2.0445]
[1750431305542,28.5624,2493.4,2492.9,2.00552]
[1750431305746,28.5624,2493.4,2492.8,4.5904]
[1750431305947,3.2078,2493.2,2492.8,1.3826]
[1750431306141,3.2078,2493.2,2492.4,3.2078]
[1750431306342,2.00544,2493.0,2492.4,3.2078]
[1750431306642,2.00544,2493.0,2492.5,7.946]
[1750431306842,4.5712,2492.9,2492.3,3.2078]
[1750431307041,4.5712,2492.9,2492.5,0.80232]
[1750431307042,6.57676,2492.9,2492.5,0.80232]
[1750431307339,4.5712,2492.9,2492.6,0.80229]
[1750431307537,0.8023,2492.6,2492.3,4.5183]
[1750431307740,0.80236,2492.5,2492.2,0.6619]
[1750431307945,2.0056,2492.8,2492.2,9.41131]
[1750431308246,6.57676,2492.9,2492.4,0.80236]
[1750431308247,1.3735,2492.7,2492.4,0.80236]
[1750431308455,1.3735,2492.7,2492.3,0.80239]
[1750431308746,0.80234,2492.5,2492.3,0.80239]
[1750431308948,2.00578,2492.6,2492.0,3.2078]
[1750431309251,0.80242,2492.3,2492.0,3.2078]
[1750431309443,0.80244,2492.2,2492.0,4.01027]
[1750431309636,0.80242,2492.3,2492.1,0.80245]
[1750431309853,28.5525,2492.5,2492.0,3.2078]
[1750431310044,0.80241,2492.3,2492.1,0.80245]
[1750431310241,30.3768,2492.3,2491.7,3.2078]
[1750431310443,3.2078,2492.3,2491.7,3.2078]
[1750431310750,14.06891483,2492.3,2491.7,3.2078]
[1750431310950,3.2078,2492.0,2491.5,0.6722]
[1750431311137,3.2078,2491.7,2491.5,0.6722]
[1750431311346,3.2078,2491.7,2491.6,0.80262]
[1750431311643,3.2078,2492.2,2492.1,0.80246]
[1750431311944,3.2078,2492.8,2492.0,3.2078]
[1750431312147,3.2078,2492.8,2492.1,1.3621]
[1750431312148,0.80238,2492.4,2492.1,1.3621]
[1750431312350,10.86111483,2492.6,2492.0,0.6722]
[1750431312645,10.86111483,2492.6,2492.0,1.47468]
[1750431312646,3.2078,2492.4,2492.0,1.47468]
[1750431312842,3.2078,2492.4,2491.8,3.2078]
[1750431312843,3.2078,2492.4,2491.5,3.2078]
[1750431313037,10.86111483,2492.0,2491.6,0.80261]
[1750431313237,3.2078,2492.1,2491.5,3.2078]
[1750431313446,0.80258,2491.8,2491.6,0.80261]
[1750431313750,3.2078,2492.1,2491.3,1.3075]
[1750431314042,3.2078,2491.8,2491.3,1.3075]
[1750431314252,3.2078,2491.4,2491.2,0.80273]
[1750431314442,3.2078,2491.4,2490.8,3.8814]
[1750431314643,0.80276,2491.2,2491.0,0.80884576]
[1750431314843,1.3213,2491.3,2491.0,0.00603576]
[1750431315042,0.80278,2491.1,2491.0,0.00603576]
[1750431315241,3.2078,2491.4,2491.0,0.00603576]
[1750431315443,3.2078,2492.1,2491.1,3.2078]
[1750431315639,7.951,2492.6,2491.9,3.2078]
[1750431315942,7.951,2492.6,2491.4,10.86111483]
[1750431315943,9.2723,2492.6,2492.0,5.214]
[1750431316149,9.2723,2492.6,2492.3,0.80238]
[1750431316150,1.3213,2492.6,2492.3,0.80238]
[1750431316345,1.3213,2492.6,2492.4,0.80233]
[1750431316555,9.2723,2492.6,2492.4,0.80233]
[1750431316846,8.126,2492.5,2492.3,0.80238]
[1750431317043,8.126,2492.5,2492.4,0.80234]
[1750431317552,0.80236,2492.4,2492.1,0.80245]
[1750431317849,4.4991,2492.4,2491.9,1.9809]
[1750431318048,4.4991,2492.4,2491.9,0.6738]
[1750431318355,4.4991,2492.4,2492.3,0.8024]
[1750431318650,5.30147,2492.4,2492.2,0.80241]
[1750431318853,5.30148,2492.4,2492.1,0.80245]
[1750431319148,4.4991,2492.4,2492.3,0.8024]
[1750431319352,3.2078,2492.4,2492.3,0.8024]
[1750431319754,3.2078,2492.7,2492.2,2.00608]
[1750431319941,11.3338,2492.7,2492.0,1.3044]
[1750431320142,1.2833,2492.6,2492.0,3.3106]
[1750431320649,1.2833,2492.6,2492.0,1.3044]
[1750431320857,0.80235,2492.5,2492.3,0.80239]
[1750431321153,0.80236,2492.4,2492.3,0.80239]
[1750431321347,3.2078,2492.7,2492.0,1.3044]
[1750431321548,11.3338,2492.7,2492.0,3.31062]
[1750431321752,11.3338,2492.7,2492.1,2.00613]
[1750431321955,11.3338,2492.7,2492.0,1.3044]
[1750431322154,0.80235,2492.5,2492.0,1.3044]
[1750431322454,3.2078,2492.1,2491.7,0.80259]
[1750431322751,0.80259,2491.7,2491.5,0.80264]
[1750431323052,8.126,2491.7,2491.6,0.80261]
[1750431323353,3.2078,2491.8,2491.6,0.80261]
[1750431323550,3.2078,2491.8,2491.3,3.2078]
[1750431323755,11.3338,2491.8,2491.3,3.2078]
[1750431323958,11.3338,2491.8,2491.5,0.80264]
[1750431324159,4.01038,2491.8,2491.6,0.80262]
[1750431324449,14.06891483,2491.8,2491.0,0.00603576]
[1750431324752,3.2078,2491.8,2491.7,0.80259]
[1750431324953,0.80259,2491.7,2491.3,2.00681]
[1750431325158,3.2078,2491.8,2491.1,2.00695]
[1750431325346,4.4611,2491.8,2491.7,0.80259]
[1750431325550,3.2078,2491.8,2491.7,0.80259]
[1750431325854,0.80261,2491.7,2491.1,1.2668]
[1750431326152,11.3348,2491.8,2491.5,0.80264]
[1750431326153,3.2078,2491.8,2491.5,0.80264]
[1750431326352,0.80262,2491.6,2491.5,0.80264]
[1750431326551,5.21423,2491.8,2491.3,0.80272]
[1750431326861,5.21423,2491.8,2491.0,0.00603576]
[1750431326862,3.2078,2491.4,2491.0,0.00603576]
[1750431327353,0.80279,2491.1,2491.0,0.00603576]
[1750431327756,4.01059,2491.1,2491.0,0.00603576]
[1750431328049,0.80296,2490.6,2490.4,0.80299]
[1750431328254,0.80299,2490.5,2490.3,0.80303]
[1750431328451,3.2078,2490.6,2490.1,3.2078]
[1750431328651,3.2078,2490.6,2490.5,0.80298]
[1750431329053,3.2078,2490.9,2490.8,0.80288]
[1750431329255,3.2078,2491.2,2491.0,0.8028]
[1750431329558,3.2078,2491.2,2491.1,0.80279]
[1750431330252,3.2078,2491.2,2491.0,0.8028]
[1750431330456,3.2078,2491.2,2491.1,0.80279]
[1750431330654,3.2078,2491.5,2491.1,0.80279]
[1750431330853,3.2078,2491.5,2490.8,1.3886]
[1750431330854,0.80278,2491.2,2490.7,3.2078]
[1750431331056,0.80278,2491.2,2491.1,0.80277]
[1750431331057,3.2078,2491.2,2491.1,0.80277]
[1750431331357,3.2078,2491.5,2491.0,2.00705]
[1750431331561,4.01047,2491.5,2491.3,0.80271]
[1750431331855,3.2078,2491.5,2491.4,0.80269]
[1750431332459,4.01047,2491.5,2491.3,0.8027]
[1750431332658,2.00696,2491.2,2490.6,0.80293]
[1750431332854,0.80285,2490.9,2490.8,0.80288]
[1750431333360,2.11557,2490.9,2490.4,2.00754]
[1750431333561,3.2078,2491.0,2490.9,0.80285]
[1750431334857,3.2078,2491.0,2490.6,3.2078]
[1750431335057,3.2078,2491.0,2490.9,0.80285]
[1750431335656,0.80285,2490.9,2490.8,0.80286]
[1750431335857,3.2078,2491.0,2490.5,2.00742]
[1750431336058,3.2078,2491.0,2490.5,2.00745]